[Event "December 12 Early 2023"]
[Site "https://www.chess.com"]
[Date "2023.12.12"]
[Round "2"]
[White "Rakhmanov, Aleksandr"]
[Black "Cremisi, Daniel"]
[Result "0-1"]
[Board "37"]
[TimeControl "180+1"]
[WhiteFideId "4173708"]
[BlackFideId "2089882"]
[WhiteElo "2891"]
[BlackElo "2588"]
[WhiteTeam "FID"]
[BlackTeam "USA"]
[WhiteClock "0:00:00"]
[BlackClock "0:00:32"]

1. d4 {[%clk 0:02:37]}  d5 {[%clk 0:02:59]} 2. c4 {[%clk 0:02:35]}  c6 {[%clk 0:02:59]} 3. cxd5 {[%clk 0:02:33]}  cxd5 {[%clk 0:02:59]} 4. Nf3 {[%clk 0:02:34]}  Nf6 {[%clk 0:02:59]} 5. Nc3 {[%clk 0:02:34]}  Nc6 {[%clk 0:02:59]} 6. Bf4 {[%clk 0:02:34]}  e6 {[%clk 0:02:56]} 7. e3 {[%clk 0:02:34]}  Bd6 {[%clk 0:02:56]} 8. Bg3 {[%clk 0:02:33]}  O-O {[%clk 0:02:55]} 9. Bd3 {[%clk 0:02:32]}  Qe7 {[%clk 0:02:51]} 10. Ne5 {[%clk 0:02:29]}  Nd7 {[%clk 0:02:41]} 11. f4 {[%clk 0:02:03]}  f5 {[%clk 0:02:41]} 12. O-O {[%clk 0:02:01]}  Nf6 {[%clk 0:02:40]} 13. Bh4 {[%clk 0:02:01]}  Qe8 {[%clk 0:02:38]} 14. Nb5 {[%clk 0:01:38]}  Bb8 {[%clk 0:02:38]} 15. Rc1 {[%clk 0:01:36]}  Ne4 {[%clk 0:02:37]} 16. Rf3 {[%clk 0:01:32]}  Bd7 {[%clk 0:02:30]} 17. Nc3 {[%clk 0:01:14]}  Nxe5 {[%clk 0:02:05]} 18. dxe5 {[%clk 0:00:59]}  Bc6 {[%clk 0:01:56]} 19. Rh3 {[%clk 0:00:50]}  Bc7 {[%clk 0:01:56]} 20. Ne2 {[%clk 0:00:38]}  Bb6 {[%clk 0:01:55]} 21. Nd4 {[%clk 0:00:39]}  Bxd4 {[%clk 0:01:55]} 22. exd4 {[%clk 0:00:40]}  Rc8 {[%clk 0:01:51]} 23. Be1 {[%clk 0:00:35]}  Qd7 {[%clk 0:01:31]} 24. Qh5 {[%clk 0:00:27]}  g6 {[%clk 0:01:30]} 25. Qd1 {[%clk 0:00:26]}  Bb5 {[%clk 0:01:28]} 26. Bb1 {[%clk 0:00:20]}  Rxc1 {[%clk 0:01:25]} 27. Qxc1 {[%clk 0:00:21]}  Rc8 {[%clk 0:01:25]} 28. Qd1 {[%clk 0:00:21]}  Qc7 {[%clk 0:01:23]} 29. Bc3 {[%clk 0:00:21]}  Qc4 {[%clk 0:01:20]} 30. Re3 {[%clk 0:00:18]}  Ba6 {[%clk 0:01:17]} 31. h3 {[%clk 0:00:18]}  b5 {[%clk 0:01:17]} 32. Kh2 {[%clk 0:00:08]}  b4 {[%clk 0:01:17]} 33. Bd3 {[%clk 0:00:06]}  Qc6 {[%clk 0:01:04]} 34. Bxa6 {[%clk 0:00:04]}  Qxa6 {[%clk 0:01:04]} 35. Bxb4 {[%clk 0:00:05]}  Qxa2 {[%clk 0:01:04]} 36. Ba3 {[%clk 0:00:03]}  Qc4 {[%clk 0:01:02]} 37. h4 {[%clk 0:00:03]}  h5 {[%clk 0:00:58]} 38. Rf3 {[%clk 0:00:02]}  Qb5 {[%clk 0:00:42]} 39. Qb3 {[%clk 0:00:02]}  Qc6 {[%clk 0:00:39]} 40. Qb4 {[%clk 0:00:02]}  Qc7 {[%clk 0:00:36]} 41. Rb3 {[%clk 0:00:02]}  Qd8 {[%clk 0:00:34]} 42. Qb7 {[%clk 0:00:02]}  Qxh4+ {[%clk 0:00:33]} 43. Rh3 {[%clk 0:00:00]}  Qxf4+ {[%clk 0:00:32]} 0-1

[Event "December 12 Early 2023"]
[Site "https://www.chess.com"]
[Date "2023.12.12"]
[Round "2"]
[White "Kuzmin, Roman"]
[Black "Demchenko, Anton"]
[Result "0-1"]
[Board "38"]
[TimeControl "180+1"]
[WhiteFideId "44134932"]
[BlackFideId "4160258"]
[WhiteElo "2582"]
[BlackElo "2887"]
[WhiteTeam "RUS"]
[BlackTeam "SLO"]
[WhiteClock "0:00:01"]
[BlackClock "0:00:05"]

1. e4 {[%clk 0:03:00]}  e5 {[%clk 0:02:59]} 2. Nf3 {[%clk 0:03:00]}  Nc6 {[%clk 0:03:00]} 3. Bb5 {[%clk 0:03:01]}  a6 {[%clk 0:03:00]} 4. Ba4 {[%clk 0:03:01]}  Nge7 {[%clk 0:03:00]} 5. Nc3 {[%clk 0:02:49]}  d6 {[%clk 0:02:59]} 6. O-O {[%clk 0:02:44]}  h6 {[%clk 0:02:58]} 7. d4 {[%clk 0:02:35]}  b5 {[%clk 0:02:57]} 8. Bb3 {[%clk 0:02:34]}  Nxd4 {[%clk 0:02:58]} 9. Nxd4 {[%clk 0:02:34]}  exd4 {[%clk 0:02:59]} 10. Ne2 {[%clk 0:02:32]}  c5 {[%clk 0:02:58]} 11. a4 {[%clk 0:02:23]}  Bb7 {[%clk 0:02:57]} 12. Ng3 {[%clk 0:02:24]}  g6 {[%clk 0:02:46]} 13. c3 {[%clk 0:02:02]}  dxc3 {[%clk 0:02:28]} 14. bxc3 {[%clk 0:02:03]}  Bg7 {[%clk 0:02:28]} 15. Bf4 {[%clk 0:02:03]}  c4 {[%clk 0:02:14]} 16. Bc2 {[%clk 0:02:01]}  O-O {[%clk 0:02:07]} 17. Qd2 {[%clk 0:01:47]}  h5 {[%clk 0:01:47]} 18. axb5 {[%clk 0:01:27]}  axb5 {[%clk 0:01:46]} 19. Rxa8 {[%clk 0:01:23]}  Bxa8 {[%clk 0:01:47]} 20. Rb1 {[%clk 0:01:22]}  Bc6 {[%clk 0:01:45]} 21. Bh6 {[%clk 0:01:07]}  Nc8 {[%clk 0:01:20]} 22. Bxg7 {[%clk 0:00:54]}  Kxg7 {[%clk 0:01:21]} 23. f4 {[%clk 0:00:55]}  Qb6+ {[%clk 0:01:04]} 24. Kh1 {[%clk 0:00:55]}  h4 {[%clk 0:01:04]} 25. Nf1 {[%clk 0:00:43]}  Qc5 {[%clk 0:00:57]} 26. Re1 {[%clk 0:00:38]}  Re8 {[%clk 0:00:52]} 27. f5 {[%clk 0:00:28]}  Qe5 {[%clk 0:00:52]} 28. Ne3 {[%clk 0:00:11]}  h3 {[%clk 0:00:10]} 29. Ng4 {[%clk 0:00:09]}  hxg2+ {[%clk 0:00:11]} 30. Kg1 {[%clk 0:00:08]}  Qc5+ {[%clk 0:00:11]} 31. Kxg2 {[%clk 0:00:09]}  Qxf5 {[%clk 0:00:09]} 32. Qh6+ {[%clk 0:00:06]}  Kg8 {[%clk 0:00:09]} 33. Qh4 {[%clk 0:00:03]}  Rxe4 {[%clk 0:00:07]} 34. Nh6+ {[%clk 0:00:03]}  Kf8 {[%clk 0:00:05]} 35. Qd8+ {[%clk 0:00:01]}  Re8+ {[%clk 0:00:05]} 36. Kg3 {[%clk 0:00:02]}  Rxd8 {[%clk 0:00:05]} 37. Nxf5 {[%clk 0:00:01]}  gxf5 {[%clk 0:00:05]} 0-1

[Event "December 12 Early 2023"]
[Site "https://www.chess.com"]
[Date "2023.12.12"]
[Round "2"]
[White "Saravana, Krishnan P."]
[Black "Kazakouski, Valery"]
[Result "1-0"]
[Board "44"]
[TimeControl "180+1"]
[WhiteFideId "5018382"]
[BlackFideId "13507443"]
[WhiteElo "2576"]
[BlackElo "2867"]
[WhiteTeam "IND"]
[BlackTeam "LTU"]
[WhiteClock "0:00:08"]
[BlackClock "0:00:00"]

1. Nf3 {[%clk 0:03:00]}  d5 {[%clk 0:02:55]} 2. g3 {[%clk 0:03:00]}  Nd7 {[%clk 0:02:55]} 3. Bg2 {[%clk 0:03:00]}  e5 {[%clk 0:02:55]} 4. O-O {[%clk 0:03:00]}  Ngf6 {[%clk 0:02:55]} 5. d3 {[%clk 0:03:00]}  Bc5 {[%clk 0:02:54]} 6. e3 {[%clk 0:02:56]}  O-O {[%clk 0:02:45]} 7. d4 {[%clk 0:02:55]}  Bd6 {[%clk 0:02:46]} 8. b3 {[%clk 0:02:51]}  e4 {[%clk 0:02:44]} 9. Nfd2 {[%clk 0:02:51]}  Qe7 {[%clk 0:02:36]} 10. c4 {[%clk 0:02:51]}  c6 {[%clk 0:02:37]} 11. a4 {[%clk 0:02:51]}  Re8 {[%clk 0:02:30]} 12. Ba3 {[%clk 0:02:51]}  Nf8 {[%clk 0:02:30]} 13. Qc1 {[%clk 0:02:46]}  h5 {[%clk 0:02:26]} 14. Nc3 {[%clk 0:02:43]}  Bd7 {[%clk 0:02:21]} 15. cxd5 {[%clk 0:02:41]}  cxd5 {[%clk 0:02:21]} 16. Bxd6 {[%clk 0:02:32]}  Qxd6 {[%clk 0:02:22]} 17. Nb5 {[%clk 0:02:29]}  Bxb5 {[%clk 0:02:14]} 18. axb5 {[%clk 0:02:29]}  Qb4 {[%clk 0:02:08]} 19. f3 {[%clk 0:02:06]}  Rac8 {[%clk 0:02:03]} 20. Qe1 {[%clk 0:02:03]}  exf3 {[%clk 0:01:28]} 21. Nxf3 {[%clk 0:02:02]}  Qxb3 {[%clk 0:01:17]} 22. Ne5 {[%clk 0:01:59]}  Ng6 {[%clk 0:01:04]} 23. Nxg6 {[%clk 0:01:33]}  fxg6 {[%clk 0:01:02]} 24. Rxa7 {[%clk 0:01:32]}  Rxe3 {[%clk 0:00:56]} 25. Qb1 {[%clk 0:01:23]}  Qxb1 {[%clk 0:00:19]} 26. Rxb1 {[%clk 0:01:22]}  Re7 {[%clk 0:00:10]} 27. Rba1 {[%clk 0:01:14]}  Rc4 {[%clk 0:00:09]} 28. R7a4 {[%clk 0:00:54]}  Rxa4 {[%clk 0:00:09]} 29. Rxa4 {[%clk 0:00:53]}  Kf7 {[%clk 0:00:10]} 30. Ra8 {[%clk 0:00:47]}  g5 {[%clk 0:00:09]} 31. Rd8 {[%clk 0:00:46]}  Ke6 {[%clk 0:00:09]} 32. h3 {[%clk 0:00:37]}  Rd7 {[%clk 0:00:09]} 33. Rb8 {[%clk 0:00:36]}  Kd6 {[%clk 0:00:09]} 34. Rc8 {[%clk 0:00:30]}  Rc7 {[%clk 0:00:08]} 35. Rd8+ {[%clk 0:00:30]}  Rd7 {[%clk 0:00:09]} 36. Rc8 {[%clk 0:00:30]}  h4 {[%clk 0:00:08]} 37. g4 {[%clk 0:00:28]}  Re7 {[%clk 0:00:09]} 38. Kf2 {[%clk 0:00:27]}  Re8 {[%clk 0:00:07]} 39. Rc1 {[%clk 0:00:19]}  Re7 {[%clk 0:00:06]} 40. Rc8 {[%clk 0:00:18]}  Rf7 {[%clk 0:00:07]} 41. Rd8+ {[%clk 0:00:19]}  Kc7 {[%clk 0:00:06]} 42. Ra8 {[%clk 0:00:17]}  Nxg4+ {[%clk 0:00:06]} 43. Ke2 {[%clk 0:00:17]}  Re7+ {[%clk 0:00:06]} 44. Kd3 {[%clk 0:00:17]}  Nf6 {[%clk 0:00:07]} 45. Rf8 {[%clk 0:00:15]}  Kb6 {[%clk 0:00:06]} 46. Rb8 {[%clk 0:00:13]}  Kxb5 {[%clk 0:00:06]} 47. Rd8 {[%clk 0:00:13]}  Kc6 {[%clk 0:00:06]} 48. Rc8+ {[%clk 0:00:13]}  Kd6 {[%clk 0:00:06]} 49. Rb8 {[%clk 0:00:13]}  g4 {[%clk 0:00:06]} 50. hxg4 {[%clk 0:00:13]}  Rd7 {[%clk 0:00:05]} 51. g5 {[%clk 0:00:12]}  Ng4 {[%clk 0:00:05]} 52. Rf8 {[%clk 0:00:11]}  Ke7 {[%clk 0:00:04]} 53. Rf4 {[%clk 0:00:10]}  h3 {[%clk 0:00:02]} 54. Bxh3 {[%clk 0:00:10]}  Nh2 {[%clk 0:00:02]} 55. Rf2 {[%clk 0:00:09]}  Rc7 {[%clk 0:00:01]} 56. Rxh2 {[%clk 0:00:09]}  b5 {[%clk 0:00:02]} 57. Re2+ {[%clk 0:00:09]}  Kf7 {[%clk 0:00:03]} 58. Be6+ {[%clk 0:00:09]}  Kg6 {[%clk 0:00:03]} 59. Bxd5 {[%clk 0:00:10]}  Kxg5 {[%clk 0:00:04]} 60. Rb2 {[%clk 0:00:10]}  Kf4 {[%clk 0:00:03]} 61. Rxb5 {[%clk 0:00:11]}  g5 {[%clk 0:00:04]} 62. Be4 {[%clk 0:00:11]}  Rf7 {[%clk 0:00:03]} 63. Rb1 {[%clk 0:00:10]}  Kg3 {[%clk 0:00:02]} 64. Rg1+ {[%clk 0:00:10]}  Kh4 {[%clk 0:00:03]} 65. d5 {[%clk 0:00:10]}  g4 {[%clk 0:00:03]} 66. d6 {[%clk 0:00:11]}  Rf6 {[%clk 0:00:03]} 67. d7 {[%clk 0:00:10]}  Rd6+ {[%clk 0:00:03]} 68. Ke3 {[%clk 0:00:10]}  Rxd7 {[%clk 0:00:04]} 69. Bf5 {[%clk 0:00:11]}  Rg7 {[%clk 0:00:02]} 70. Kf4 {[%clk 0:00:11]}  Kh3 {[%clk 0:00:02]} 71. Bxg4+ {[%clk 0:00:11]}  Kh2 {[%clk 0:00:02]} 72. Rf1 {[%clk 0:00:11]}  Rf7+ {[%clk 0:00:02]} 73. Bf5 {[%clk 0:00:11]}  Kg2 {[%clk 0:00:02]} 74. Re1 {[%clk 0:00:11]}  Kf2 {[%clk 0:00:02]} 75. Ra1 {[%clk 0:00:10]}  Re7 {[%clk 0:00:02]} 76. Ra2+ {[%clk 0:00:09]}  Re2 {[%clk 0:00:03]} 77. Ra3 {[%clk 0:00:10]}  Rb2 {[%clk 0:00:02]} 78. Be4 {[%clk 0:00:10]}  Ke1 {[%clk 0:00:01]} 79. Rh3 {[%clk 0:00:11]}  Kd2 {[%clk 0:00:01]} 80. Ke5 {[%clk 0:00:09]}  Rb4 {[%clk 0:00:00]} 81. Bd5 {[%clk 0:00:08]} 1-0

[Event "December 12 Early 2023"]
[Site "https://www.chess.com"]
[Date "2023.12.12"]
[Round "2"]
[White "Materia, Marco"]
[Black "Osmak, Yuliia"]
[Result "1-0"]
[Board "52"]
[TimeControl "180+1"]
[WhiteFideId "45150451"]
[BlackFideId "14101602"]
[WhiteElo "2836"]
[BlackElo "2562"]
[WhiteTeam "FRA"]
[BlackTeam "UKR"]
[WhiteClock "0:01:06"]
[BlackClock "0:00:00"]

1. Nf3 {[%clk 0:03:00]}  d5 {[%clk 0:02:37]} 2. e3 {[%clk 0:03:00]}  Nf6 {[%clk 0:02:35]} 3. c4 {[%clk 0:03:00]}  dxc4 {[%clk 0:02:31]} 4. Bxc4 {[%clk 0:03:00]}  e6 {[%clk 0:02:31]} 5. O-O {[%clk 0:03:00]}  a6 {[%clk 0:02:30]} 6. a4 {[%clk 0:02:54]}  c5 {[%clk 0:02:20]} 7. d4 {[%clk 0:02:44]}  cxd4 {[%clk 0:02:17]} 8. Nxd4 {[%clk 0:02:43]}  Bd6 {[%clk 0:02:05]} 9. Qe2 {[%clk 0:02:35]}  O-O {[%clk 0:02:00]} 10. Rd1 {[%clk 0:02:33]}  Qe7 {[%clk 0:01:54]} 11. b3 {[%clk 0:02:29]}  b6 {[%clk 0:01:50]} 12. Ba3 {[%clk 0:02:27]}  Bxa3 {[%clk 0:01:48]} 13. Nxa3 {[%clk 0:02:28]}  Bb7 {[%clk 0:01:48]} 14. Qb2 {[%clk 0:02:20]}  Nbd7 {[%clk 0:01:45]} 15. Rac1 {[%clk 0:02:16]}  Rac8 {[%clk 0:01:39]} 16. Bf1 {[%clk 0:02:15]}  h6 {[%clk 0:01:26]} 17. Nc4 {[%clk 0:02:14]}  Nd5 {[%clk 0:01:19]} 18. Be2 {[%clk 0:01:57]}  Nc5 {[%clk 0:01:05]} 19. Bf3 {[%clk 0:01:53]}  Rb8 {[%clk 0:00:51]} 20. Qa3 {[%clk 0:01:46]}  Rfc8 {[%clk 0:00:43]} 21. a5 {[%clk 0:01:33]}  b5 {[%clk 0:00:30]} 22. Bxd5 {[%clk 0:01:33]}  Bxd5 {[%clk 0:00:15]} 23. Nb6 {[%clk 0:01:33]}  Rc7 {[%clk 0:00:14]} 24. b4 {[%clk 0:01:10]}  Ne4 {[%clk 0:00:11]} 25. Nxd5 {[%clk 0:01:09]}  exd5 {[%clk 0:00:10]} 26. Nc6 {[%clk 0:01:09]}  Qf6 {[%clk 0:00:06]} 27. Nxb8 {[%clk 0:01:08]}  Qxf2+ {[%clk 0:00:06]} 28. Kh1 {[%clk 0:01:08]}  Rb7 {[%clk 0:00:00]} 29. Nc6 {[%clk 0:01:06]} 1-0

[Event "December 12 Early 2023"]
[Site "https://www.chess.com"]
[Date "2023.12.12"]
[Round "2"]
[White "Miladinovic, Igor"]
[Black "De Boer, Eelke"]
[Result "1-0"]
[Board "55"]
[TimeControl "180+1"]
[WhiteFideId "4203380"]
[BlackFideId "1048120"]
[WhiteElo "2818"]
[BlackElo "2560"]
[WhiteTeam "SRB"]
[BlackTeam "NED"]
[WhiteClock "0:00:33"]
[BlackClock "0:00:02"]

1. d4 {[%clk 0:03:00]}  Nf6 {[%clk 0:02:59]} 2. Bg5 {[%clk 0:03:00]}  d5 {[%clk 0:02:58]} 3. Bxf6 {[%clk 0:02:59]}  gxf6 {[%clk 0:02:59]} 4. e3 {[%clk 0:02:59]}  c5 {[%clk 0:02:57]} 5. dxc5 {[%clk 0:02:58]}  Nc6 {[%clk 0:02:53]} 6. c4 {[%clk 0:02:58]}  Qa5+ {[%clk 0:02:44]} 7. Nc3 {[%clk 0:02:56]}  dxc4 {[%clk 0:02:43]} 8. Bxc4 {[%clk 0:02:56]}  Qxc5 {[%clk 0:02:41]} 9. Bb3 {[%clk 0:02:52]}  Bf5 {[%clk 0:02:30]} 10. Nge2 {[%clk 0:02:42]}  e6 {[%clk 0:02:28]} 11. O-O {[%clk 0:02:39]}  Rd8 {[%clk 0:02:24]} 12. Qc1 {[%clk 0:02:23]}  Bd6 {[%clk 0:02:04]} 13. Ng3 {[%clk 0:02:20]}  Bg6 {[%clk 0:01:48]} 14. Rd1 {[%clk 0:02:19]}  h5 {[%clk 0:01:32]} 15. Nge4 {[%clk 0:01:59]}  Bxe4 {[%clk 0:01:27]} 16. Nxe4 {[%clk 0:02:00]}  Bxh2+ {[%clk 0:01:22]} 17. Kh1 {[%clk 0:01:50]}  Qe5 {[%clk 0:01:12]} 18. Rxd8+ {[%clk 0:01:42]}  Nxd8 {[%clk 0:01:13]} 19. Qc4 {[%clk 0:01:40]}  f5 {[%clk 0:00:43]} 20. Nc5 {[%clk 0:01:34]}  b6 {[%clk 0:00:27]} 21. Ba4+ {[%clk 0:01:26]}  Ke7 {[%clk 0:00:27]} 22. Nd3 {[%clk 0:01:26]}  Qc7 {[%clk 0:00:27]} 23. Qd4 {[%clk 0:01:23]}  f6 {[%clk 0:00:23]} 24. Rc1 {[%clk 0:01:22]}  Qd6 {[%clk 0:00:23]} 25. Qc3 {[%clk 0:01:14]}  Be5 {[%clk 0:00:22]} 26. Qc2 {[%clk 0:01:10]}  Kf7 {[%clk 0:00:11]} 27. f4 {[%clk 0:01:09]}  Kg6 {[%clk 0:00:02]} 28. fxe5 {[%clk 0:01:07]}  fxe5 {[%clk 0:00:03]} 29. Rd1 {[%clk 0:01:07]}  Qb8 {[%clk 0:00:02]} 30. Qf2 {[%clk 0:01:07]}  Nf7 {[%clk 0:00:02]} 31. Qg3+ {[%clk 0:01:07]}  Kf6 {[%clk 0:00:03]} 32. Nf2 {[%clk 0:01:04]}  h4 {[%clk 0:00:02]} 33. Qh2 {[%clk 0:00:54]}  Ng5 {[%clk 0:00:03]} 34. Rf1 {[%clk 0:00:53]}  Kg6 {[%clk 0:00:03]} 35. e4 {[%clk 0:00:50]}  Qd6 {[%clk 0:00:02]} 36. Bc2 {[%clk 0:00:47]}  Qd2 {[%clk 0:00:02]} 37. exf5+ {[%clk 0:00:45]}  exf5 {[%clk 0:00:03]} 38. Qxe5 {[%clk 0:00:45]}  Qxc2 {[%clk 0:00:02]} 39. Qxh8 {[%clk 0:00:44]}  Qe2 {[%clk 0:00:01]} 40. Qg8+ {[%clk 0:00:39]}  Kf6 {[%clk 0:00:01]} 41. Kg1 {[%clk 0:00:40]}  Nf7 {[%clk 0:00:02]} 42. Qh7 {[%clk 0:00:33]}  Ng5 {[%clk 0:00:02]} 1-0

[Event "December 12 Early 2023"]
[Site "https://www.chess.com"]
[Date "2023.12.12"]
[Round "2"]
[White "Postlmayer, Jakob"]
[Black "Mikhailovsky, Vladimir"]
[Result "1-0"]
[Board "56"]
[TimeControl "180+1"]
[WhiteFideId "1643622"]
[BlackFideId "34105414"]
[WhiteElo "2560"]
[BlackElo "2818"]
[WhiteTeam "AUT"]
[BlackTeam "RUS"]
[WhiteClock "0:00:28"]
[BlackClock "0:00:00"]

1. c4 {[%clk 0:03:00]}  c6 {[%clk 0:02:56]} 2. Nf3 {[%clk 0:03:00]}  d5 {[%clk 0:02:56]} 3. e3 {[%clk 0:03:00]}  Nf6 {[%clk 0:02:56]} 4. Nc3 {[%clk 0:03:00]}  Nbd7 {[%clk 0:02:47]} 5. d4 {[%clk 0:02:59]}  e6 {[%clk 0:02:45]} 6. Be2 {[%clk 0:02:59]}  Bd6 {[%clk 0:02:41]} 7. O-O {[%clk 0:02:58]}  O-O {[%clk 0:02:42]} 8. b3 {[%clk 0:02:58]}  Qe7 {[%clk 0:02:39]} 9. Bb2 {[%clk 0:02:57]}  dxc4 {[%clk 0:02:38]} 10. bxc4 {[%clk 0:02:55]}  e5 {[%clk 0:02:38]} 11. Re1 {[%clk 0:02:44]}  Re8 {[%clk 0:02:33]} 12. h3 {[%clk 0:02:42]}  b6 {[%clk 0:02:33]} 13. Qb3 {[%clk 0:02:29]}  e4 {[%clk 0:02:14]} 14. Nd2 {[%clk 0:02:28]}  Nf8 {[%clk 0:02:15]} 15. a4 {[%clk 0:02:23]}  Bb4 {[%clk 0:01:49]} 16. Ba3 {[%clk 0:02:15]}  a5 {[%clk 0:01:49]} 17. Reb1 {[%clk 0:02:01]}  c5 {[%clk 0:01:48]} 18. Bxb4 {[%clk 0:01:48]}  axb4 {[%clk 0:01:35]} 19. Nb5 {[%clk 0:01:43]}  Ng6 {[%clk 0:01:25]} 20. Bf1 {[%clk 0:01:38]}  Rd8 {[%clk 0:01:20]} 21. d5 {[%clk 0:01:33]}  Nh4 {[%clk 0:01:09]} 22. Qd1 {[%clk 0:01:28]}  Qe5 {[%clk 0:00:47]} 23. g3 {[%clk 0:01:12]}  Nf5 {[%clk 0:00:32]} 24. Bg2 {[%clk 0:01:11]}  Nd6 {[%clk 0:00:26]} 25. Nxd6 {[%clk 0:01:08]}  Rxd6 {[%clk 0:00:26]} 26. Ra2 {[%clk 0:01:00]}  Bd7 {[%clk 0:00:23]} 27. Rba1 {[%clk 0:00:59]}  h5 {[%clk 0:00:20]} 28. h4 {[%clk 0:00:54]}  Ng4 {[%clk 0:00:12]} 29. Nxe4 {[%clk 0:00:53]}  Rg6 {[%clk 0:00:13]} 30. a5 {[%clk 0:00:47]}  bxa5 {[%clk 0:00:12]} 31. Rxa5 {[%clk 0:00:45]}  Rxa5 {[%clk 0:00:13]} 32. Rxa5 {[%clk 0:00:45]}  f6 {[%clk 0:00:10]} 33. Nxc5 {[%clk 0:00:43]}  Nxf2 {[%clk 0:00:09]} 34. Qf3 {[%clk 0:00:39]}  Rxg3 {[%clk 0:00:03]} 35. Qxf2 {[%clk 0:00:36]}  Bg4 {[%clk 0:00:02]} 36. Nd3 {[%clk 0:00:30]}  Qxe3 {[%clk 0:00:02]} 37. Qxe3 {[%clk 0:00:30]}  Rxe3 {[%clk 0:00:03]} 38. Nxb4 {[%clk 0:00:29]}  Rc3 {[%clk 0:00:04]} 39. d6 {[%clk 0:00:28]}  Rxc4 {[%clk 0:00:00]} 40. Bd5+ {[%clk 0:00:28]} 1-0

[Event "December 12 Early 2023"]
[Site "https://www.chess.com"]
[Date "2023.12.12"]
[Round "2"]
[White "Dragnev, Valentin"]
[Black "Andreev, Konstantin"]
[Result "1/2-1/2"]
[Board "58"]
[TimeControl "180+1"]
[WhiteFideId "1634852"]
[BlackFideId "24239305"]
[WhiteElo "2806"]
[BlackElo "2559"]
[WhiteTeam "AUT"]
[BlackTeam "ITA"]
[WhiteClock "0:00:07"]
[BlackClock "0:00:08"]

1. Nf3 {[%clk 0:03:00]}  Nf6 {[%clk 0:02:59]} 2. d4 {[%clk 0:03:00]}  b5 {[%clk 0:03:00]} 3. e3 {[%clk 0:02:55]}  a6 {[%clk 0:02:59]} 4. a4 {[%clk 0:02:55]}  b4 {[%clk 0:02:59]} 5. Bd3 {[%clk 0:02:50]}  Bb7 {[%clk 0:02:59]} 6. O-O {[%clk 0:02:51]}  e6 {[%clk 0:03:00]} 7. Re1 {[%clk 0:02:51]}  d5 {[%clk 0:02:59]} 8. c3 {[%clk 0:02:45]}  c5 {[%clk 0:02:57]} 9. dxc5 {[%clk 0:02:40]}  Bxc5 {[%clk 0:02:56]} 10. Bd2 {[%clk 0:02:18]}  bxc3 {[%clk 0:02:56]} 11. Bxc3 {[%clk 0:02:08]}  O-O {[%clk 0:02:56]} 12. b4 {[%clk 0:02:09]}  Bd6 {[%clk 0:02:55]} 13. Nbd2 {[%clk 0:02:09]}  Nbd7 {[%clk 0:02:55]} 14. Bf1 {[%clk 0:01:51]}  e5 {[%clk 0:02:54]} 15. Qb3 {[%clk 0:01:47]}  Rc8 {[%clk 0:02:49]} 16. Rac1 {[%clk 0:01:44]}  Qe7 {[%clk 0:02:49]} 17. h3 {[%clk 0:01:30]}  h6 {[%clk 0:02:42]} 18. b5 {[%clk 0:01:18]}  axb5 {[%clk 0:02:42]} 19. axb5 {[%clk 0:01:11]}  Nc5 {[%clk 0:02:42]} 20. Qb1 {[%clk 0:01:11]}  Nfe4 {[%clk 0:02:37]} 21. Nxe4 {[%clk 0:01:05]}  Nxe4 {[%clk 0:02:38]} 22. Bb2 {[%clk 0:01:03]}  f5 {[%clk 0:02:38]} 23. Rxc8 {[%clk 0:01:00]}  Rxc8 {[%clk 0:02:38]} 24. Rc1 {[%clk 0:01:00]}  Re8 {[%clk 0:02:38]} 25. b6 {[%clk 0:00:48]}  Ng5 {[%clk 0:02:23]} 26. Qxf5 {[%clk 0:00:33]}  Nxf3+ {[%clk 0:02:03]} 27. Qxf3 {[%clk 0:00:31]}  Rf8 {[%clk 0:01:45]} 28. Qg4 {[%clk 0:00:31]}  Qf7 {[%clk 0:01:39]} 29. Rc2 {[%clk 0:00:29]}  Kh8 {[%clk 0:01:29]} 30. Qg3 {[%clk 0:00:27]}  Qe6 {[%clk 0:01:27]} 31. Qg4 {[%clk 0:00:26]}  Qf6 {[%clk 0:01:26]} 32. f4 {[%clk 0:00:25]}  Bb8 {[%clk 0:01:24]} 33. Qh5 {[%clk 0:00:22]}  Qxb6 {[%clk 0:01:23]} 34. Bxe5 {[%clk 0:00:21]}  Qxe3+ {[%clk 0:01:21]} 35. Rf2 {[%clk 0:00:20]}  Bxe5 {[%clk 0:01:00]} 36. Qxe5 {[%clk 0:00:21]}  Qxe5 {[%clk 0:00:46]} 37. fxe5 {[%clk 0:00:22]}  Re8 {[%clk 0:00:47]} 38. Bd3 {[%clk 0:00:22]}  Kg8 {[%clk 0:00:45]} 39. Rb2 {[%clk 0:00:14]}  Re7 {[%clk 0:00:44]} 40. Kf2 {[%clk 0:00:12]}  Kf7 {[%clk 0:00:44]} 41. Rb6 {[%clk 0:00:10]}  Rc7 {[%clk 0:00:44]} 42. Ke3 {[%clk 0:00:10]}  Bc6 {[%clk 0:00:41]} 43. Kd4 {[%clk 0:00:09]}  Bb7 {[%clk 0:00:38]} 44. Bg6+ {[%clk 0:00:08]}  Ke7 {[%clk 0:00:38]} 45. Bd3 {[%clk 0:00:09]}  Kf7 {[%clk 0:00:33]} 46. h4 {[%clk 0:00:09]}  Ke7 {[%clk 0:00:32]} 47. g4 {[%clk 0:00:09]}  Kf7 {[%clk 0:00:32]} 48. g5 {[%clk 0:00:10]}  hxg5 {[%clk 0:00:33]} 49. hxg5 {[%clk 0:00:11]}  Ke7 {[%clk 0:00:34]} 50. g6 {[%clk 0:00:11]}  Bc6 {[%clk 0:00:31]} 51. Bf5 {[%clk 0:00:10]}  Bb7 {[%clk 0:00:30]} 52. Re6+ {[%clk 0:00:10]}  Kf8 {[%clk 0:00:30]} 53. Rd6 {[%clk 0:00:08]}  Rc4+ {[%clk 0:00:25]} 54. Kd3 {[%clk 0:00:08]}  Rc7 {[%clk 0:00:26]} 55. Kd4 {[%clk 0:00:07]}  Rc4+ {[%clk 0:00:25]} 56. Kd3 {[%clk 0:00:07]}  Rc7 {[%clk 0:00:26]} 57. Rb6 {[%clk 0:00:08]}  Ke7 {[%clk 0:00:25]} 58. Bg4 {[%clk 0:00:07]}  Bc6 {[%clk 0:00:18]} 59. Kd4 {[%clk 0:00:06]}  Bb7 {[%clk 0:00:18]} 60. Be2 {[%clk 0:00:07]}  Bc6 {[%clk 0:00:19]} 61. Ba6 {[%clk 0:00:06]}  Ba8 {[%clk 0:00:18]} 62. Bb5 {[%clk 0:00:06]}  Bb7 {[%clk 0:00:18]} 63. Rd6 {[%clk 0:00:07]}  Ba8 {[%clk 0:00:18]} 64. Rb6 {[%clk 0:00:07]}  Bb7 {[%clk 0:00:18]} 65. e6 {[%clk 0:00:08]}  Ba8 {[%clk 0:00:17]} 66. Ke5 {[%clk 0:00:08]}  Bb7 {[%clk 0:00:16]} 67. Bd3 {[%clk 0:00:08]}  Bc8 {[%clk 0:00:13]} 68. Bf5 {[%clk 0:00:07]}  Rc1 {[%clk 0:00:11]} 69. Rb8 {[%clk 0:00:06]}  Re1+ {[%clk 0:00:08]} 70. Kd4 {[%clk 0:00:06]}  Bxe6 {[%clk 0:00:09]} 71. Rb7+ {[%clk 0:00:06]}  Kf6 {[%clk 0:00:09]} 72. Bd3 {[%clk 0:00:07]}  Rg1 {[%clk 0:00:06]} 73. Rb6 {[%clk 0:00:06]}  Rg4+ {[%clk 0:00:05]} 74. Kc5 {[%clk 0:00:05]}  Ke5 {[%clk 0:00:06]} 75. Rb1 {[%clk 0:00:03]}  Rg3 {[%clk 0:00:06]} 76. Re1+ {[%clk 0:00:04]}  Kf6 {[%clk 0:00:07]} 77. Kd4 {[%clk 0:00:05]}  Rg4+ {[%clk 0:00:06]} 78. Kc5 {[%clk 0:00:05]}  Bf5 {[%clk 0:00:06]} 79. Rf1 {[%clk 0:00:04]}  Rg5 {[%clk 0:00:07]} 80. Kxd5 {[%clk 0:00:04]}  Kxg6 {[%clk 0:00:07]} 81. Rxf5 {[%clk 0:00:04]}  Rxf5+ {[%clk 0:00:08]} 82. Ke6 {[%clk 0:00:05]}  Kg5 {[%clk 0:00:07]} 83. Bxf5 {[%clk 0:00:06]}  Kf4 {[%clk 0:00:08]} 84. Bg6 {[%clk 0:00:06]}  Kg5 {[%clk 0:00:08]} 85. Kf7 {[%clk 0:00:07]}  Kf4 {[%clk 0:00:08]} 86. Kxg7 {[%clk 0:00:07]} 1/2-1/2